bitfinex-derivatives/quotes_BTCF0:USTF0_20250720
["timestamp","ask_amount","ask_price","bid_price","bid_amount"]
[1752992946156,0.4814158,117930.0,117920.0,0.89380283]
[1752992946456,0.35335012,117930.0,117920.0,1.14993419]
[1752992946855,0.4814158,117930.0,117920.0,1.14993419]
[1752992947056,0.4814158,117930.0,117920.0,0.98041809]
[1752992947256,0.8422158,117930.0,117920.0,0.81030241]
[1752992947445,0.8422158,117930.0,117920.0,0.75516241]
[1752992948452,0.8422158,117930.0,117920.0,0.77842241]
[1752992952259,0.8422158,117930.0,117920.0,0.84504241]
[1752992953464,0.71415012,117930.0,117920.0,0.84504241]
[1752992953762,0.8422158,117930.0,117920.0,0.84504241]
[1752992955464,0.8422158,117930.0,117920.0,0.85235241]
[1752992957452,1.13988148,117930.0,117920.0,0.00074]
[1752992957656,1.75068148,117930.0,117920.0,0.00074]
[1752992958253,1.50068148,117930.0,117920.0,0.00074]
[1752992960371,1.52126759,117930.0,117920.0,0.00074]
[1752992963769,1.26513623,117930.0,117920.0,0.00074]
[1752992963965,1.52126759,117930.0,117920.0,0.00074]
[1752992964864,1.26513623,117930.0,117920.0,0.00074]
[1752992965058,1.52126759,117930.0,117920.0,0.00074]
[1752992970670,1.35166759,117930.0,117920.0,0.00074]
[1752992971673,1.52126759,117930.0,117920.0,0.00074]
[1752992974677,1.35166759,117930.0,117920.0,0.00074]
[1752992976972,1.09553623,117930.0,117920.0,0.00074]
[1752992977178,1.35166759,117930.0,117920.0,0.00074]
[1752992979679,1.52126759,117930.0,117920.0,0.00074]
[1752992980682,1.35166759,117930.0,117920.0,0.00074]
[1752992990394,0.63006759,117930.0,117920.0,0.00074]
[1752992990591,1.35166759,117930.0,117920.0,0.00074]
[1752992992984,0.63006759,117930.0,117920.0,0.00074]
[1752992993289,1.35166759,117930.0,117920.0,0.00074]
[1752992994392,1.09553623,117930.0,117920.0,0.00074]
[1752992994581,1.35166759,117930.0,117920.0,0.00074]
[1752992996295,1.09553623,117930.0,117920.0,0.00074]
[1752992996490,1.35166759,117930.0,117920.0,0.00074]
[1752993005199,1.33108148,117930.0,117920.0,0.00074]
[1752993005396,1.07495012,117930.0,117920.0,0.00074]
[1752993005590,1.33108148,117930.0,117920.0,0.00074]
[1752993010702,1.35184429,117930.0,117920.0,0.00074]
[1752993010895,0.63024429,117930.0,117920.0,0.00074]
[1752993011096,1.35184429,117930.0,117920.0,0.00074]
[1752993012398,0.63024429,117930.0,117920.0,0.00074]
[1752993012599,1.35184429,117930.0,117920.0,0.00074]
[1752993014400,0.3218504,117910.0,117900.0,0.12207261]
[1752993014702,1.04563608,117910.0,117900.0,0.17207261]
[1752993015701,1.04663608,117910.0,117900.0,0.17407261]
[1752993017001,1.06739641,117910.0,117900.0,0.17407261]
[1752993017203,1.06839641,117910.0,117900.0,0.17607261]
[1752993017601,1.42919641,117910.0,117900.0,0.17607261]
[1752993019500,1.42919641,117910.0,117900.0,0.12607261]
[1752993023214,1.40843608,117910.0,117900.0,0.12607261]
[1752993024114,1.2803704,117910.0,117900.0,0.12607261]
[1752993024417,1.40843608,117910.0,117900.0,0.12607261]
[1752993025718,1.40843608,117910.0,117900.0,0.05430261]
[1752993027418,1.42918336,117910.0,117900.0,0.05430261]
[1752993028816,1.40843608,117910.0,117900.0,0.05430261]
[1752993029016,1.42918293,117910.0,117900.0,0.05430261]
[1752993029821,1.30111725,117910.0,117900.0,0.05430261]
[1752993030021,1.42918293,117910.0,117900.0,0.05430261]
[1752993030624,1.30111725,117910.0,117900.0,0.05430261]
[1752993030822,1.42918293,117910.0,117900.0,0.05430261]
[1752993033725,1.06838293,117910.0,117900.0,0.05430261]
[1752993033925,1.42918293,117910.0,117900.0,0.05430261]
[1752993036029,1.40843608,117910.0,117900.0,0.05430261]
[1752993038633,1.42918421,117910.0,117900.0,0.05430261]
[1752993040028,1.30111853,117910.0,117900.0,0.05430261]
[1752993040233,1.42918421,117910.0,117900.0,0.05430261]
[1752993044739,1.42918421,117910.0,117900.0,0.05504261]
[1752993046650,1.42918421,117910.0,117900.0,0.03115261]
[1752993049845,1.06838421,117910.0,117900.0,0.03115261]
[1752993050038,1.42918421,117910.0,117900.0,0.03115261]
[1752993051442,1.06838421,117910.0,117900.0,0.03115261]
[1752993051643,1.30111853,117910.0,117900.0,0.03115261]
[1752993051943,1.42918421,117910.0,117900.0,0.03115261]
[1752993053843,1.06838421,117910.0,117900.0,0.03115261]
[1752993054046,1.42918421,117910.0,117900.0,0.03115261]
[1752993055945,1.06838421,117910.0,117900.0,0.03115261]
[1752993056145,1.42918421,117910.0,117900.0,0.03115261]
[1752993056645,1.42818421,117910.0,117900.0,0.03015261]
[1752993056845,1.42718421,117910.0,117900.0,0.02815261]
[1752993057044,1.42718421,117910.0,117900.0,0.02915261]
[1752993057442,1.06638421,117910.0,117900.0,0.02915261]
[1752993057648,1.42718421,117910.0,117900.0,0.02915261]
[1752993057844,1.06638421,117910.0,117900.0,0.02915261]
[1752993058146,1.42718421,117910.0,117900.0,0.02915261]
[1752993060147,1.42718421,117910.0,117900.0,0.01198319]
[1752993060743,1.06638421,117910.0,117900.0,0.01198319]
[1752993061049,1.42718421,117910.0,117900.0,0.01198319]
[1752993070567,1.29911853,117910.0,117900.0,0.01198319]
[1752993070867,1.42718421,117910.0,117900.0,0.01198319]
[1752993072371,1.29911853,117910.0,117900.0,0.01198319]
[1752993072566,1.42718421,117910.0,117900.0,0.01198319]
[1752993073768,1.55524989,117910.0,117900.0,0.00274]
[1752993073970,0.3228392,117890.0,117880.0,0.1801191]
[1752993074267,0.45090488,117890.0,117880.0,0.36046693]
[1752993074467,0.9178392,117890.0,117880.0,0.36046693]
[1752993074665,1.04590488,117890.0,117880.0,0.49743104]
[1752993075170,1.04690488,117890.0,117880.0,0.50043104]
[1752993075565,1.04690488,117890.0,117880.0,0.37236536]
[1752993075967,1.04690488,117890.0,117880.0,0.37136536]
[1752993077873,1.04690488,117890.0,117880.0,0.49943104]
[1752993078875,0.9188392,117890.0,117880.0,0.66900464]
[1752993079075,1.04690488,117890.0,117880.0,0.66900464]
[1752993079472,1.04690488,117890.0,117880.0,0.17943104]
[1752993079673,1.04690488,117890.0,117880.0,0.29943104]
[1752993087478,0.9188392,117890.0,117880.0,0.29943104]
[1752993087685,1.04690488,117890.0,117880.0,0.29943104]
[1752993089282,1.04690488,117890.0,117880.0,0.17136536]
[1752993092582,0.9188392,117890.0,117880.0,0.17136536]
[1752993093076,1.04690488,117890.0,117880.0,0.17136536]
[1752993094086,0.9188392,117890.0,117880.0,0.17136536]
[1752993094389,1.04690488,117890.0,117880.0,0.17136536]
[1752993094583,1.04690488,117890.0,117880.0,0.29943104]
[1752993094784,1.40770488,117890.0,117880.0,0.29943104]
[1752993094984,1.40770488,117890.0,117880.0,0.17136536]
[1752993095185,1.04690488,117890.0,117880.0,0.29943104]
[1752993095386,0.9188392,117890.0,117880.0,0.17136536]
[1752993095586,1.04690488,117890.0,117880.0,0.29943104]
[1752993095792,1.04690488,117890.0,117880.0,0.17136536]
[1752993095991,1.04690488,117890.0,117880.0,0.29943104]
[1752993098494,1.53577056,117890.0,117880.0,0.14817536]
[1752993098695,1.40770488,117890.0,117880.0,0.14817536]
[1752993102697,1.2796392,117890.0,117880.0,0.14817536]
[1752993102994,1.40770488,117890.0,117880.0,0.14817536]
[1752993103597,1.04690488,117890.0,117880.0,0.14817536]
[1752993103798,1.40770488,117890.0,117880.0,0.14817536]
[1752993104198,1.42850188,117890.0,117880.0,0.14817536]
[1752993105800,1.40770488,117890.0,117880.0,0.14817536]
[1752993117409,1.40770488,117890.0,117880.0,0.27624104]
[1752993118405,1.04690488,117890.0,117880.0,0.27624104]
[1752993118806,1.04690488,117890.0,117880.0,0.14817536]
[1752993119010,1.2796392,117890.0,117880.0,0.14817536]
[1752993119209,1.04690488,117890.0,117880.0,0.14817536]
[1752993119504,1.40770488,117890.0,117880.0,0.27624104]
[1752993120105,0.9188392,117890.0,117880.0,0.27624104]
[1752993120405,0.9188392,117890.0,117880.0,0.14817536]
[1752993120712,1.40770488,117890.0,117880.0,0.27624104]
[1752993121307,1.04690488,117890.0,117880.0,0.14817536]
[1752993122012,1.40770488,117890.0,117880.0,0.14817536]
[1752993122214,1.40770488,117890.0,117880.0,0.27624104]
[1752993122614,1.40770488,117890.0,117880.0,0.14817536]
[1752993122815,1.04690488,117890.0,117880.0,0.14817536]
[1752993123316,1.04690488,117890.0,117880.0,0.27624104]
[1752993125115,0.9188392,117890.0,117880.0,0.27624104]
[1752993125417,1.04690488,117890.0,117880.0,0.27624104]
[1752993128518,1.04690488,117890.0,117880.0,0.13089843]
[1752993129020,1.0654758,117890.0,117880.0,0.13089843]
[1752993129516,0.34241012,117890.0,117880.0,0.13089843]
[1752993129724,0.4704758,117890.0,117880.0,0.13089843]
[1752993130018,0.4704758,117890.0,117880.0,0.28051411]
[1752993130418,0.4704758,117890.0,117880.0,0.15244843]
[1752993130921,0.4704758,117890.0,117880.0,0.28051411]
[1752993131423,0.8312758,117890.0,117880.0,0.28051411]
[1752993133923,0.85211286,117890.0,117880.0,0.28051411]
[1752993134624,0.85211286,117890.0,117880.0,0.25896411]
[1752993135122,0.72404718,117890.0,117880.0,0.25896411]
[1752993135323,0.85211286,117890.0,117880.0,0.25896411]
[1752993135622,0.85211286,117890.0,117880.0,0.13089843]
[1752993135825,0.85211286,117890.0,117880.0,0.25896411]
[1752993136927,0.85211286,117890.0,117880.0,0.13089843]
[1752993138127,0.8312758,117890.0,117880.0,0.13089843]
[1752993140438,0.85216027,117890.0,117880.0,0.13089843]
[1752993141136,0.72409459,117890.0,117880.0,0.13089843]
[1752993141336,0.85216027,117890.0,117880.0,0.13089843]
[1752993143335,0.72409459,117890.0,117880.0,0.13089843]
[1752993143536,0.85216027,117890.0,117880.0,0.13089843]
[1752993143737,0.85216027,117890.0,117880.0,0.15244843]
[1752993144939,0.85216027,117890.0,117880.0,0.13089843]
[1752993145239,0.85216039,117890.0,117880.0,0.13089843]
[1752993146338,0.49136039,117890.0,117880.0,0.13089843]
[1752993146641,0.85216039,117890.0,117880.0,0.13089843]
[1752993146841,0.49136039,117890.0,117880.0,0.13089843]
[1752993147042,0.85216039,117890.0,117880.0,0.13089843]
[1752993150343,0.8312758,117890.0,117880.0,0.13089843]
[1752993152644,0.8312758,117890.0,117880.0,0.25896411]
[1752993152843,1.4245158,117890.0,117880.0,0.13089843]
[1752993155448,1.0637158,117890.0,117880.0,0.13089843]
[1752993155647,1.4245158,117890.0,117880.0,0.13089843]
[1752993156047,1.4245158,117890.0,117880.0,0.25896411]
[1752993158550,1.0637158,117890.0,117880.0,0.42853761]
[1752993159449,1.0637158,117890.0,117880.0,0.25896411]
[1752993160551,1.0637158,117890.0,117880.0,0.45033761]
[1752993160749,0.2171392,117890.0,117880.0,1.36886897]
[1752993160943,0.1705591,117890.0,117880.0,1.83384329]
[1752993161343,0.2138591,117890.0,117880.0,1.83384329]
[1752993161546,0.2265491,117890.0,117880.0,1.83384329]
[1752993164250,0.2265491,117890.0,117880.0,1.90313458]
[1752993171253,0.44134478,117890.0,117880.0,1.4075489]
[1752993171450,0.44134478,117890.0,117880.0,1.10990972]
[1752993171650,0.44134478,117890.0,117880.0,1.00255843]
[1752993174252,0.44134478,117890.0,117880.0,1.13062411]
[1752993177254,0.44134478,117890.0,117880.0,1.00255843]
[1752993177442,0.44134478,117890.0,117880.0,0.95062411]
[1752993178254,0.44134478,117890.0,117880.0,0.75545843]
[1752993182160,0.44134478,117890.0,117880.0,0.78656843]
[1752993182462,0.44134478,117890.0,117880.0,0.81394843]
[1752993183564,0.3132791,117890.0,117880.0,0.81394843]
[1752993183762,0.44134478,117890.0,117880.0,0.94801411]
[1752993184161,0.44134478,117890.0,117880.0,0.81994843]
[1752993186663,0.80214478,117890.0,117880.0,0.81994843]
[1752993189465,0.6740791,117890.0,117880.0,0.81994843]
[1752993189761,0.80214478,117890.0,117880.0,0.81994843]
[1752993192461,0.8212662,117890.0,117880.0,0.81994843]
[1752993192666,0.69320052,117890.0,117880.0,0.81994843]
[1752993192869,0.8212662,117890.0,117880.0,0.81994843]
[1752993193769,0.4604662,117890.0,117880.0,0.81994843]
[1752993193961,0.8212662,117890.0,117880.0,0.81994843]
[1752993195664,0.4604662,117890.0,117880.0,0.81994843]
[1752993196168,0.8212662,117890.0,117880.0,0.81994843]
[1752993196364,0.33240052,117890.0,117880.0,1.51603811]
[1752993196569,0.4604662,117890.0,117880.0,1.52088811]
[1752993202271,0.4604662,117890.0,117880.0,1.39282243]
[1752993202665,0.4604662,117890.0,117880.0,1.52088811]
[1752993202865,0.4604662,117890.0,117880.0,1.64895379]
[1752993203761,0.4604662,117890.0,117880.0,1.52088811]
[1752993204274,0.4604662,117890.0,117880.0,1.39282243]
[1752993204570,0.4604662,117890.0,117880.0,1.52088811]
[1752993205574,0.4604662,117890.0,117880.0,1.39282243]
[1752993205873,0.4604662,117890.0,117880.0,1.52088811]
[1752993208374,0.4604662,117890.0,117880.0,1.16008811]
[1752993208670,0.4604662,117890.0,117880.0,1.52088811]
[1752993210875,0.33240052,117890.0,117880.0,1.52088811]
[1752993211079,0.4604662,117890.0,117880.0,1.64895379]
[1752993211475,0.33240052,117890.0,117880.0,1.64895379]
[1752993211776,0.4109262,117890.0,117880.0,1.64895379]
[1752993212477,0.28286052,117890.0,117880.0,1.64895379]
[1752993212676,0.24567052,117890.0,117880.0,1.64895379]
[1752993217981,0.3737362,117890.0,117880.0,1.64895379]
[1752993218273,0.35461478,117890.0,117880.0,1.64895379]
[1752993218979,0.38683478,117890.0,117880.0,1.64895379]
[1752993222384,0.2587691,117890.0,117880.0,1.64895379]
[1752993223587,0.2587691,117890.0,117880.0,1.39282243]
[1752993223779,0.2587691,117890.0,117880.0,1.64895379]
[1752993224882,0.38683478,117890.0,117880.0,1.39282243]
[1752993225179,0.38683478,117890.0,117880.0,1.64895379]
[1752993225770,0.38683478,117890.0,117880.0,1.71711721]
[1752993226781,0.2587691,117890.0,117880.0,1.71711721]
[1752993226984,0.38683478,117890.0,117880.0,1.71711721]
[1752993227383,0.2587691,117890.0,117880.0,1.71711721]
[1752993227585,0.38683478,117890.0,117880.0,1.71711721]
[1752993229684,0.38683478,117890.0,117880.0,1.64895379]
[1752993232987,0.2587691,117890.0,117880.0,1.64895379]
[1752993234192,0.2587691,117890.0,117880.0,1.39282243]
[1752993234387,0.2587691,117890.0,117880.0,1.64895379]
[1752993237989,0.38683478,117890.0,117880.0,1.64895379]
[1752993240087,0.2587691,117890.0,117880.0,1.64895379]
[1752993240588,0.38683478,117890.0,117880.0,1.64895379]
[1752993240890,0.2587691,117890.0,117880.0,1.64895379]
[1752993241697,0.2587691,117890.0,117880.0,1.28815379]
[1752993241892,0.2587691,117890.0,117880.0,1.64895379]
[1752993243990,0.2265491,117890.0,117880.0,1.64895379]
[1752993244191,0.35461478,117890.0,117880.0,1.64895379]
[1752993244494,0.38445478,117890.0,117880.0,1.64895379]
[1752993245796,0.38445478,117890.0,117880.0,1.28815379]
[1752993245998,0.38445478,117890.0,117880.0,1.64895379]
[1752993246397,0.2563891,117890.0,117880.0,1.64895379]
[1752993246798,0.38445478,117890.0,117880.0,1.64895379]
[1752993247598,0.41861478,117890.0,117880.0,1.64895379]
[1752993248400,0.41861478,117890.0,117880.0,1.52088811]
[1752993248595,0.41861478,117890.0,117880.0,1.64895379]
[1752993249208,0.43985478,117890.0,117880.0,1.64895379]
[1752993250502,0.43985478,117890.0,117880.0,1.51895379]
[1752993252203,0.3117891,117890.0,117880.0,1.51895379]
[1752993252406,0.43985478,117890.0,117880.0,1.51895379]
[1752993253104,0.3117891,117890.0,117880.0,1.51895379]
[1752993253303,0.43985478,117890.0,117880.0,1.26282243]
[1752993253503,0.43985478,117890.0,117880.0,1.51895379]
[1752993255205,0.3117891,117890.0,117880.0,1.51895379]
[1752993255505,0.43985478,117890.0,117880.0,1.51895379]
[1752993262201,0.43985478,117890.0,117880.0,1.51970379]
[1752993263211,0.43985478,117890.0,117880.0,1.26357243]
[1752993263407,0.3117891,117890.0,117880.0,1.39163811]
[1752993263609,0.43985478,117890.0,117880.0,1.39163811]
[1752993265213,0.3117891,117890.0,117880.0,1.39163811]
[1752993265419,0.43985478,117890.0,117880.0,1.39163811]
[1752993266221,0.3117891,117890.0,117880.0,1.39163811]
[1752993266417,0.43985478,117890.0,117880.0,1.39163811]
[1752993266618,0.43985478,117890.0,117880.0,1.26357243]
[1752993266818,0.43985478,117890.0,117880.0,1.39163811]
[1752993271525,0.43985478,117890.0,117880.0,1.26357243]
[1752993271720,0.43985478,117890.0,117880.0,1.39163811]
[1752993272525,0.43985478,117890.0,117880.0,1.26357243]
[1752993272726,0.43985478,117890.0,117880.0,1.39163811]
[1752993279333,0.44336379,117890.0,117880.0,1.39163811]
[1752993279826,0.31529811,117890.0,117880.0,1.39163811]
[1752993280130,0.44336379,117890.0,117880.0,1.39163811]
[1752993284135,0.31529811,117890.0,117880.0,1.26357243]
[1752993284332,0.44336379,117890.0,117880.0,1.39163811]
[1752993286033,0.44336379,117890.0,117880.0,1.22206411]
[1752993286235,0.31529811,117890.0,117880.0,1.22206411]
[1752993286435,0.44336379,117890.0,117880.0,1.39163781]
[1752993287435,0.44336379,117890.0,117880.0,1.26357213]
[1752993287638,0.44336379,117890.0,117880.0,1.39163781]
[1752993288730,0.44336379,117890.0,117880.0,1.03083781]
[1752993288936,0.44336379,117890.0,117880.0,1.39163781]
[1752993294146,0.44336379,117890.0,117880.0,1.26357213]
[1752993294343,0.44336379,117890.0,117880.0,1.39163781]
[1752993296244,0.44336379,117890.0,117880.0,1.22206411]
[1752993296544,0.44336379,117890.0,117880.0,1.39163761]
[1752993297447,0.44336379,117890.0,117880.0,1.26357193]
[1752993297745,0.44336379,117890.0,117880.0,1.39163761]
[1752993302149,0.44336379,117890.0,117880.0,1.26357193]
[1752993302749,0.44336379,117890.0,117880.0,1.09399843]
[1752993302950,0.44336379,117890.0,117880.0,1.22206411]
[1752993303148,0.44336379,117890.0,117880.0,1.21721411]
[1752993303350,0.44336379,117890.0,117880.0,1.08914843]
[1752993303648,0.44336379,117890.0,117880.0,1.21721411]
[1752993305040,0.44336379,117890.0,117880.0,1.38678771]
[1752993305849,0.44336379,117890.0,117880.0,1.21721411]
[1752993308953,0.44336379,117890.0,117880.0,1.38678771]
[1752993309554,0.44336379,117890.0,117880.0,1.08914843]
[1752993309751,0.44336379,117890.0,117880.0,1.21721411]
[1752993311255,0.44336379,117890.0,117880.0,1.08914843]
[1752993311457,0.44336379,117890.0,117880.0,1.21721411]
[1752993311853,0.44336379,117890.0,117880.0,1.08914843]
[1752993312250,0.44336379,117890.0,117880.0,1.25872193]
[1752993313155,0.44336379,117890.0,117880.0,1.38678761]
[1752993313351,0.44336379,117890.0,117880.0,1.02598761]
[1752993313650,0.44336379,117890.0,117880.0,1.38678761]
[1752993314558,0.44336379,117890.0,117880.0,1.25872193]
[1752993314757,0.44336379,117890.0,117880.0,1.08914843]
[1752993316356,0.44336379,117890.0,117880.0,1.21721411]
[1752993316854,0.44336379,117890.0,117880.0,1.25872203]
[1752993317055,0.31529811,117890.0,117880.0,1.25872203]
[1752993317249,0.44336379,117890.0,117880.0,1.25872203]
[1752993317857,0.44336379,117890.0,117880.0,1.08914843]
[1752993321860,0.44336379,117890.0,117880.0,0.72834843]
[1752993322060,0.44336379,117890.0,117880.0,1.08914843]
[1752993322761,0.44336379,117890.0,117880.0,0.72834843]
[1752993323058,0.31529811,117890.0,117880.0,1.08914843]
[1752993323248,0.44336379,117890.0,117880.0,1.08914843]
[1752993323960,0.44336379,117890.0,117880.0,0.72834843]
[1752993324159,0.44336379,117890.0,117880.0,1.25872193]
[1752993324356,0.44336379,117890.0,117880.0,0.89792193]
[1752993324561,0.44336379,117890.0,117880.0,1.25872193]
[1752993324961,0.44336379,117890.0,117880.0,0.89792193]
[1752993325259,0.44336379,117890.0,117880.0,1.25872193]
[1752993325763,0.44336379,117890.0,117880.0,1.08914843]
[1752993329767,0.44336379,117890.0,117880.0,0.72834843]
[1752993330062,0.44336379,117890.0,117880.0,1.08914843]
[1752993330763,0.44336379,117890.0,117880.0,0.72834843]
[1752993331065,0.44336379,117890.0,117880.0,1.08914843]
[1752993331459,0.44336379,117890.0,117880.0,0.72834843]
[1752993331763,0.44336379,117890.0,117880.0,1.08914843]
[1752993332366,0.44336379,117890.0,117880.0,0.72834843]
[1752993332960,0.31529811,117890.0,117880.0,0.72834843]
[1752993333166,0.44336379,117890.0,117880.0,0.89792203]
[1752993335474,0.44336379,117890.0,117880.0,1.02598771]
[1752993337967,0.44336379,117890.0,117880.0,1.02864771]
[1752993338967,0.44336379,117890.0,117880.0,1.38944771]
[1752993342771,0.31529811,117890.0,117880.0,1.38944771]
[1752993342976,0.44336379,117890.0,117880.0,1.38944771]
[1752993344173,0.31529811,117890.0,117880.0,1.38944771]
[1752993344373,0.44336379,117890.0,117880.0,1.38944771]
[1752993345574,0.31529811,117890.0,117880.0,1.38944771]
[1752993345974,0.44336379,117890.0,117880.0,1.38944771]
[1752993346374,0.44336379,117890.0,117880.0,1.26138203]
[1752993346574,0.44336379,117890.0,117880.0,1.38944771]
[1752993346769,0.44336379,117890.0,117880.0,1.21987411]
[1752993346974,0.44336379,117890.0,117880.0,1.09180843]
[1752993347174,0.44336379,117890.0,117880.0,1.21987411]
[1752993347577,0.44336379,117890.0,117880.0,1.38944771]
[1752993350777,0.44336379,117890.0,117880.0,1.21987411]
[1752993352582,0.44336379,117890.0,117880.0,1.38944771]
[1752993355482,0.31529811,117890.0,117880.0,1.38944771]
[1752993355681,0.44336379,117890.0,117880.0,1.38944771]
[1752993356380,0.44336379,117890.0,117880.0,1.02864771]
[1752993356580,0.44336379,117890.0,117880.0,1.38944771]
[1752993363784,0.44336379,117890.0,117880.0,1.21987411]
[1752993365082,0.44336379,117890.0,117880.0,1.38944771]
[1752993365785,0.44336379,117890.0,117880.0,1.02864771]
[1752993365987,0.44336379,117890.0,117880.0,1.38944771]
[1752993369885,0.44336379,117890.0,117880.0,1.09180843]
[1752993370080,0.44336379,117890.0,117880.0,1.21987411]
[1752993370286,0.44336379,117890.0,117880.0,1.38944771]
[1752993370985,0.31529811,117890.0,117880.0,1.38944771]
[1752993371186,0.44336379,117890.0,117880.0,1.38944771]
[1752993372388,0.44336379,117890.0,117880.0,1.26138203]
[1752993372590,0.44336379,117890.0,117880.0,1.38944771]
[1752993378892,0.44336379,117890.0,117880.0,1.02864771]
[1752993379094,0.44336379,117890.0,117880.0,1.38944771]
[1752993379795,0.31529811,117890.0,117880.0,1.38944771]
[1752993380095,0.44336379,117890.0,117880.0,1.38944771]
[1752993380893,0.31529811,117890.0,117880.0,1.38944771]
[1752993381097,0.31529811,117890.0,117880.0,1.51751339]
[1752993381294,0.17406811,117890.0,117880.0,1.87831339]
[1752993382894,0.17406811,117890.0,117880.0,1.62218203]
[1752993383291,0.17406811,117890.0,117880.0,1.87831339]
[1752993383789,0.00450901,117890.0,117880.0,1.87831339]
[1752993385488,0.00450901,117890.0,117880.0,1.94569481]
[1752993386196,0.00550901,117890.0,117880.0,1.94769481]
[1752993389999,0.00550901,117890.0,117880.0,2.02403698]
[1752993390200,0.00550901,117890.0,117880.0,2.04137371]
[1752993390694,0.00550901,117890.0,117880.0,1.96503154]
[1752993395806,0.00550901,117890.0,117880.0,1.70890018]
[1752993396004,0.00550901,117890.0,117880.0,1.96503154]
[1752993396605,0.17506841,117890.0,117880.0,1.96503154]
[1752993397203,0.21359841,117890.0,117880.0,1.96503154]
[1752993397607,0.34166409,117890.0,117880.0,1.96503154]
[1752993398108,0.21359841,117890.0,117880.0,1.96503154]
[1752993399003,0.22486841,117890.0,117880.0,1.96503154]
[1752993399706,0.35293409,117890.0,117880.0,1.96503154]
[1752993400411,0.35293409,117890.0,117880.0,1.24343154]
[1752993400604,0.35293409,117890.0,117880.0,1.96503154]
[1752993400903,0.35293409,117890.0,117880.0,1.60423154]
[1752993401108,0.35293409,117890.0,117880.0,1.96503154]
[1752993402606,0.22486841,117890.0,117880.0,1.96503154]
[1752993403506,0.22486841,117890.0,117880.0,1.70890018]
[1752993403705,0.22486841,117890.0,117880.0,1.96503154]
[1752993405613,0.35293409,117890.0,117880.0,1.96503154]
[1752993407314,0.22486841,117890.0,117880.0,1.96503154]
[1752993407514,0.00550901,117890.0,117880.0,2.44309722]
[1752993408015,0.1695505,117900.0,117890.0,0.2674494]
[1752993408213,0.1695505,117900.0,117890.0,0.88438076]
[1752993409614,0.3331143,117910.0,117900.0,0.267435]
[1752993409812,0.35391392,117910.0,117900.0,1.47284636]
[1752993410115,0.40244392,117910.0,117900.0,1.47284636]
[1752993410518,0.5305096,117910.0,117900.0,1.47284636]
[1752993410818,0.50970998,117910.0,117900.0,1.47284636]
[1752993411114,0.3826443,117910.0,117900.0,1.47284636]
[1752993411316,0.53151376,117910.0,117900.0,1.47284636]
[1752993411717,0.51070998,117910.0,117900.0,1.47284636]
[1752993411918,0.51070998,117910.0,117900.0,1.47359636]
[1752993412316,0.53151613,117910.0,117900.0,1.47359636]
[1752993412817,0.53151613,117910.0,117900.0,1.217465]
[1752993413013,0.53151613,117910.0,117900.0,1.47359636]
[1752993414123,0.40345045,117910.0,117900.0,1.47359636]
[1752993414522,0.53151613,117910.0,117900.0,1.47359636]
[1752993414718,0.40345045,117910.0,117900.0,1.47359636]
[1752993414919,0.53151613,117910.0,117900.0,1.47359636]
[1752993420431,0.53151613,117910.0,117900.0,1.217465]
[1752993420631,0.53151613,117910.0,117900.0,1.47359636]
[1752993421039,0.40345045,117910.0,117900.0,1.47359636]
[1752993421229,0.53151613,117910.0,117900.0,1.47359636]
[1752993422237,0.40345045,117910.0,117900.0,1.47359636]
[1752993422433,0.53151613,117910.0,117900.0,1.47359636]
[1752993423036,0.40345045,117910.0,117900.0,1.47359636]
[1752993423330,0.53151613,117910.0,117900.0,1.217465]
[1752993423536,0.53151613,117910.0,117900.0,1.47359636]
[1752993424038,0.53151613,117910.0,117900.0,1.34553068]
[1752993430944,0.53151613,117910.0,117900.0,0.98473068]
[1752993431243,0.53151613,117910.0,117900.0,1.34553068]
[1752993432642,0.40345045,117910.0,117900.0,1.34553068]
[1752993432843,0.53151613,117910.0,117900.0,1.34553068]
[1752993434648,0.40345045,117910.0,117900.0,1.34553068]
[1752993434844,0.53151613,117910.0,117900.0,1.34553068]
[1752993435550,0.53151613,117910.0,117900.0,1.217465]
[1752993435848,0.53151613,117910.0,117900.0,1.34553068]
[1752993437346,0.40345045,117910.0,117900.0,1.34553068]
[1752993437649,0.53151613,117910.0,117900.0,1.34553068]
[1752993437849,0.53151613,117910.0,117900.0,1.217465]
[1752993438050,0.53151613,117910.0,117900.0,1.34553068]
[1752993439752,0.53151613,117910.0,117900.0,1.217465]
[1752993439955,0.53151613,117910.0,117900.0,1.34553068]
[1752993444856,0.51070998,117910.0,117900.0,1.34553068]
[1752993445056,0.51070998,117910.0,117900.0,1.42187285]
[1752993445548,0.51070998,117910.0,117900.0,1.34553068]
[1752993446755,0.51070998,117910.0,117900.0,1.217465]
[1752993446953,0.51070998,117910.0,117900.0,1.34553068]
[1752993450356,0.51070998,117910.0,117900.0,0.98473068]
[1752993450556,0.51070998,117910.0,117900.0,1.34553068]
[1752993456464,0.51070998,117910.0,117900.0,1.17598568]
[1752993456762,0.51070998,117910.0,117900.0,1.04792]
[1752993456962,0.51070998,117910.0,117900.0,1.17598568]
[1752993458666,0.51070998,117910.0,117900.0,1.34553068]
[1752993460965,0.3826443,117910.0,117900.0,1.34553068]
[1752993461164,0.51070998,117910.0,117900.0,1.34553068]
[1752993462364,0.3826443,117910.0,117900.0,1.34553068]
[1752993462560,0.51070998,117910.0,117900.0,1.34553068]
[1752993470672,0.3826443,117910.0,117900.0,1.34553068]
[1752993470971,0.51070998,117910.0,117900.0,1.34553068]
[1752993473273,0.51070998,117910.0,117900.0,1.217465]
[1752993473766,0.51070998,117910.0,117900.0,1.34553068]
[1752993481179,0.51070998,117910.0,117900.0,1.217465]
[1752993481378,0.51070998,117910.0,117900.0,1.17598568]
[1752993483378,0.51070998,117910.0,117900.0,1.34553068]
[1752993485681,0.51070998,117910.0,117900.0,0.98473068]
[1752993485980,0.51070998,117910.0,117900.0,1.34553068]
[1752993486182,0.51070998,117910.0,117900.0,1.17598568]
[1752993487082,0.51070998,117910.0,117900.0,1.04792]
[1752993487582,0.51070998,117910.0,117900.0,1.17598568]
[1752993488382,0.51070998,117910.0,117900.0,1.04792]
[1752993488682,0.51070998,117910.0,117900.0,1.17598568]
[1752993489684,0.51070998,117910.0,117900.0,0.81518568]
[1752993489885,0.51070998,117910.0,117900.0,1.17598568]
[1752993491287,0.51070998,117910.0,117900.0,1.04792]
[1752993493981,0.51070998,117910.0,117900.0,1.17598568]
[1752993494688,0.51070998,117910.0,117900.0,0.81518568]
[1752993494888,0.51070998,117910.0,117900.0,1.17598568]
[1752993499098,0.51070998,117910.0,117900.0,1.04792]
[1752993499291,0.51070998,117910.0,117900.0,1.17598568]
[1752993501899,0.51070998,117910.0,117900.0,1.04792]
[1752993503899,0.51070998,117910.0,117900.0,0.68712]
[1752993504101,0.51070998,117910.0,117900.0,1.04792]
[1752993506902,0.51070998,117910.0,117900.0,0.68712]
[1752993507203,0.51070998,117910.0,117900.0,1.04792]
[1752993510005,0.51070998,117910.0,117900.0,0.68712]
[1752993510206,0.51070998,117910.0,117900.0,1.04792]
[1752993511905,0.63877566,117910.0,117900.0,0.04761]
[1752993512210,1.02029129,117910.0,117900.0,0.60453]
[1752993513412,0.65949129,117910.0,117900.0,0.60453]